Workbook

Sheet LETRA (hidden)
H1: =CONCATENATE(D106,H2) -> DOSCIENTOS VEINTIUN MILLONES DOSCIENTOS VEINTIUN MIL SETECIENTOS ONCE PESOS 70/100 M.N. | R1: =CONCATENATE(N106,R2) -> SEISCIENTOS SESENTA MILLONES SEISCIENTOS SEIS MIL PESOS 00/100 M.N. | AB1: =CONCATENATE(X106,AB2) -> QUINIENTOS CINCUENTA Y CINCO MILLONES QUINIENTOS CINCUENTA Y CINCO MIL CIENTO TREINTA Y CINCO PESOS 11/100 M.N. | AN1: =CONCATENATE(AJ106,AN2) -> OCHOCIENTOS OCHENTA MILLONES OCHOCIENTOS OCHENTA MIL PESOS 00/100 M.N.
H2: =CONCATENATE(E92," MILLON",E93,H3) -> VEINTIUN MILLONES DOSCIENTOS VEINTIUN MIL SETECIENTOS ONCE PESOS 70/100 M.N. | R2: =CONCATENATE(O92," MILLON",O93,R3) -> SESENTA MILLONES SEISCIENTOS SEIS MIL PESOS 00/100 M.N. | AB2: =CONCATENATE(Y92," MILLON",Y93,AB3) -> CINCUENTA Y CINCO MILLONES QUINIENTOS CINCUENTA Y CINCO MIL CIENTO TREINTA Y CINCO PESOS 11/100 M.N. | AN2: =CONCATENATE(AK92," MILLON",AK93,AN3) -> OCHENTA MILLONES OCHOCIENTOS OCHENTA MIL PESOS 00/100 M.N.
B3: =IF(B10<=99,H6,IF(B10<=999,H5,IF(B10<=99999,H4,IF(B10<=999999,H3,IF(B10<=99999999,H2,H1))))) -> VEINTIUN MIL SETECIENTOS ONCE PESOS 70/100 M.N. | H3: =CONCATENATE(D71,H4) -> DOSCIENTOS VEINTIUN MIL SETECIENTOS ONCE PESOS 70/100 M.N. | L3: =IF(L10<=99,R6,IF(L10<=999,R5,IF(L10<=99999,R4,IF(L10<=999999,R3,IF(L10<=99999999,R2,R1))))) -> SEIS MIL PESOS 00/100 M.N. | R3: =CONCATENATE(N71,R4) -> SEISCIENTOS SEIS MIL PESOS 00/100 M.N. | V3: =IF(V10<=99,AB6,IF(V10<=999,AB5,IF(V10<=99999,AB4,IF(V10<=999999,AB3,IF(V10<=99999999,AB2,AB1))))) -> CINCUENTA Y CINCO MIL CIENTO TREINTA Y CINCO PESOS 11/100 M.N. | AB3: =CONCATENATE(X71,AB4) -> QUINIENTOS CINCUENTA Y CINCO MIL CIENTO TREINTA Y CINCO PESOS 11/100 M.N. | AH3: =IF(AH10<=99,AN6,IF(AH10<=999,AN5,IF(AH10<=99999,AN4,IF(AH10<=999999,AN3,IF(AH10<=99999999,AN2,AN1))))) -> OCHENTA MIL PESOS 00/100 M.N. | AN3: =CONCATENATE(AJ71,AN4) -> OCHOCIENTOS OCHENTA MIL PESOS 00/100 M.N.
H4: =CONCATENATE(E57,H8,H5) -> VEINTIUN MIL SETECIENTOS ONCE PESOS 70/100 M.N. | R4: =CONCATENATE(O57,R8,R5) -> SEIS MIL PESOS 00/100 M.N. | AB4: =CONCATENATE(Y57,AB8,AB5) -> CINCUENTA Y CINCO MIL CIENTO TREINTA Y CINCO PESOS 11/100 M.N. | AN4: =CONCATENATE(AK57,AN8,AN5) -> OCHENTA MIL PESOS 00/100 M.N.
H5: =CONCATENATE(D37,H6) -> SETECIENTOS ONCE PESOS 70/100 M.N. | R5: =CONCATENATE(N37,R6) -> PESOS 00/100 M.N. | AB5: =CONCATENATE(X37,AB6) -> CIENTO TREINTA Y CINCO PESOS 11/100 M.N. | AN5: =CONCATENATE(AJ37,AN6) -> PESOS 00/100 M.N.
H6: =CONCATENATE(E17,H7,I7) -> ONCE PESOS 70/100 M.N. | R6: =CONCATENATE(O17,R7,S7) -> PESOS 00/100 M.N. | AB6: =CONCATENATE(Y17,AB7,AC7) -> TREINTA Y CINCO PESOS 11/100 M.N. | AN6: =CONCATENATE(AK17,AN7,AO7) -> PESOS 00/100 M.N.
H7: =IF(B10<=1," PESO "," PESOS ") -> PESOS | I7: =CONCATENATE(RIGHT(C9,2),"/100 M.N.") -> 70/100 M.N. | R7: =IF(L10<=1," PESO "," PESOS ") -> PESOS | S7: =CONCATENATE(RIGHT(M9,2),"/100 M.N.") -> 00/100 M.N. | AB7: =IF(V10<=1," PESO "," PESOS ") -> PESOS | AC7: =CONCATENATE(RIGHT(W9,2),"/100 M.N.") -> 11/100 M.N. | AN7: =IF(AH10<=1," PESO "," PESOS ") -> PESOS | AO7: =CONCATENATE(RIGHT(AI9,2),"/100 M.N.") -> 00/100 M.N.
H8: =IF(B10<=999999," MIL ",IF(RIGHT(B10,6)="000000"," DE ",IF(LEFT(RIGHT(B10,6),3)="000"," "," MIL "))) -> MIL | R8: =IF(L10<=999999," MIL ",IF(RIGHT(L10,6)="000000"," DE ",IF(LEFT(RIGHT(L10,6),3)="000"," "," MIL "))) -> MIL | AB8: =IF(V10<=999999," MIL ",IF(RIGHT(V10,6)="000000"," DE ",IF(LEFT(RIGHT(V10,6),3)="000"," "," MIL "))) -> MIL | AN8: =IF(AH10<=999999," MIL ",IF(RIGHT(AH10,6)="000000"," DE ",IF(LEFT(RIGHT(AH10,6),3)="000"," "," MIL "))) -> MIL
B9: =+REG!C17 -> 21711.7025 | C9: =DOLLAR(B9,2) -> $21,711.70 | L9: =+REG!C19 -> 6000 | M9: =DOLLAR(L9,2) -> $6,000.00 | V9: =+REG!C21 -> 55135.1075 | W9: =DOLLAR(V9,2) -> $55,135.11 | AH9: 80000.0032 | AI9: =DOLLAR(AH9,2) -> $80,000.00
B10: =TRUNC(B9,0) -> 21711 | C10: =IF(+LEFT(RIGHT(B$10,2),2)<20,LEFT(RIGHT(B$10,2),2),RIGHT(B$10,1)) -> 1 | D10: =IF(E12<=22,E10,E11) -> 11 | E10: =RIGHT(B10,2) -> 11 | G10: Y UN | H10: UN | L10: =TRUNC(L9,0) -> 6000 | M10: =IF(+LEFT(RIGHT(L$10,2),2)<20,LEFT(RIGHT(L$10,2),2),RIGHT(L$10,1)) -> 0 | N10: =IF(O12<=22,O10,O11) -> 00 | O10: =RIGHT(L10,2) -> 00 | Q10: Y UN | R10: UN | V10: =TRUNC(V9,0) -> 55135 | W10: =IF(+LEFT(RIGHT(V$10,2),2)<20,LEFT(RIGHT(V$10,2),2),RIGHT(V$10,1)) -> 5 | X10: =IF(Y12<=22,Y10,Y11) -> 5 | Y10: =RIGHT(V10,2) -> 35 | AA10: Y UN | AB10: UN | AH10: =TRUNC(AH9,0) -> 80000 | AI10: =IF(+LEFT(RIGHT(AH$10,2),2)<20,LEFT(RIGHT(AH$10,2),2),RIGHT(AH$10,1)) -> 0 | AJ10: =IF(AK12<=22,AK10,AK11) -> 00 | AK10: =RIGHT(AH10,2) -> 00 | AM10: Y UN | AN10: UN
B11: =+C10 -> 1 | C11: =IF(+LEFT(RIGHT(B$10,2),2)<20,LEFT(RIGHT(B$10,2),2),LEFT(RIGHT(B$10,2),1)) -> 1 | D11: =+D10 -> 11 | E11: =RIGHT(B10,1) -> 1 | G11: Y DOS | H11: DOS | L11: =+M10 -> 0 | M11: =IF(+LEFT(RIGHT(L$10,2),2)<20,LEFT(RIGHT(L$10,2),2),LEFT(RIGHT(L$10,2),1)) -> 0 | N11: =+N10 -> 00 | O11: =RIGHT(L10,1) -> 0 | Q11: Y DOS | R11: DOS | V11: =+W10 -> 5 | W11: =IF(+LEFT(RIGHT(V$10,2),2)<20,LEFT(RIGHT(V$10,2),2),LEFT(RIGHT(V$10,2),1)) -> 3 | X11: =+X10 -> 5 | Y11: =RIGHT(V10,1) -> 5 | AA11: Y DOS | AB11: DOS | AH11: =+AI10 -> 0 | AI11: =IF(+LEFT(RIGHT(AH$10,2),2)<20,LEFT(RIGHT(AH$10,2),2),LEFT(RIGHT(AH$10,2),1)) -> 0 | AJ11: =+AJ10 -> 00 | AK11: =RIGHT(AH10,1) -> 0 | AM11: Y DOS | AN11: DOS
B12: 5 | C12: =5+C11 -> 6 | D12: 5 | E12: =1+E10 -> 12 | G12: Y TRES | H12: TRES | L12: 5 | M12: =5+M11 -> 5 | N12: 5 | O12: =1+O10 -> 1 | Q12: Y TRES | R12: TRES | V12: 5 | W12: =5+W11 -> 8 | X12: 5 | Y12: =1+Y10 -> 36 | AA12: Y TRES | AB12: TRES | AH12: 5 | AI12: =5+AI11 -> 5 | AJ12: 5 | AK12: =1+AK10 -> 1 | AM12: Y TRES | AN12: TRES
B13: =+B12+B11+C11 -> 7 | D13: =+D12+D11 -> 16 | E13: =IF(B13=5,"",CHOOSE(D10,H10,H11,H12,H13,H14,H15,H16,H17,H18,H19,H20,H21,H22,H23,H24,H25,H26,H27,H28,H29,H30)) -> ONCE | G13: Y CUATRO | H13: CUATRO | L13: =+L12+L11+M11 -> 5 | N13: =+N12+N11 -> 5 | O13: =IF(L13=5,"",CHOOSE(N10,R10,R11,R12,R13,R14,R15,R16,R17,R18,R19,R20,R21,R22,R23,R24,R25,R26,R27,R28,R29,R30)) ->  | Q13: Y CUATRO | R13: CUATRO | V13: =+V12+V11+W11 -> 13 | X13: =+X12+X11 -> 10 | Y13: =IF(V13=5,"",CHOOSE(X10,AB10,AB11,AB12,AB13,AB14,AB15,AB16,AB17,AB18,AB19,AB20,AB21,AB22,AB23,AB24,AB25,AB26,AB27,AB28,AB29,AB30)) -> CINCO | AA13: Y CUATRO | AB13: CUATRO | AH13: =+AH12+AH11+AI11 -> 5 | AJ13: =+AJ12+AJ11 -> 5 | AK13: =IF(AH13=5,"",CHOOSE(AJ10,AN10,AN11,AN12,AN13,AN14,AN15,AN16,AN17,AN18,AN19,AN20,AN21,AN22,AN23,AN24,AN25,AN26,AN27,AN28,AN29,AN30)) ->  | AM13: Y CUATRO | AN13: CUATRO
E14: =IF(D13=5,"",CHOOSE(D10,G10,G11,G12,G13,G14,G15,G16,G17,G18,G19)) ->  | G14: Y CINCO | H14: CINCO | O14: =IF(N13=5,"",CHOOSE(N10,Q10,Q11,Q12,Q13,Q14,Q15,Q16,Q17,Q18,Q19)) ->  | Q14: Y CINCO | R14: CINCO | Y14: =IF(X13=5,"",CHOOSE(X10,AA10,AA11,AA12,AA13,AA14,AA15,AA16,AA17,AA18,AA19)) -> Y CINCO | AA14: Y CINCO | AB14: CINCO | AK14: =IF(AJ13=5,"",CHOOSE(AJ10,AM10,AM11,AM12,AM13,AM14,AM15,AM16,AM17,AM18,AM19)) ->  | AM14: Y CINCO | AN14: CINCO
E15: =CHOOSE(C11,G20,G21,G22,G23,G24,G25,G26,G27,G28,G29) -> DIECI | G15: Y SEIS | H15: SEIS | O15: =CHOOSE(M11,Q20,Q21,Q22,Q23,Q24,Q25,Q26,Q27,Q28,Q29) ->  | Q15: Y SEIS | R15: SEIS | Y15: =CHOOSE(W11,AA20,AA21,AA22,AA23,AA24,AA25,AA26,AA27,AA28,AA29) -> TREINTA | AA15: Y SEIS | AB15: SEIS | AK15: =CHOOSE(AI11,AM20,AM21,AM22,AM23,AM24,AM25,AM26,AM27,AM28,AM29) ->  | AM15: Y SEIS | AN15: SEIS
G16: Y SIETE | H16: SIETE | Q16: Y SIETE | R16: SIETE | AA16: Y SIETE | AB16: SIETE | AM16: Y SIETE | AN16: SIETE
E17: =IF(E12<=22,E13,IF(E12<=30,CONCATENATE(E15,E13),CONCATENATE(E15,E14))) -> ONCE | G17: Y OCHO | H17: OCHO | O17: =IF(O12<=22,O13,IF(O12<=30,CONCATENATE(O15,O13),CONCATENATE(O15,O14))) ->  | Q17: Y OCHO | R17: OCHO | Y17: =IF(Y12<=22,Y13,IF(Y12<=30,CONCATENATE(Y15,Y13),CONCATENATE(Y15,Y14))) -> TREINTA Y CINCO | AA17: Y OCHO | AB17: OCHO | AK17: =IF(AK12<=22,AK13,IF(AK12<=30,CONCATENATE(AK15,AK13),CONCATENATE(AK15,AK14))) ->  | AM17: Y OCHO | AN17: OCHO
G18: Y NUEVE | H18: NUEVE | Q18: Y NUEVE | R18: NUEVE | AA18: Y NUEVE | AB18: NUEVE | AM18: Y NUEVE | AN18: NUEVE
H19: DIEZ | R19: DIEZ | AB19: DIEZ | AN19: DIEZ
G20: DIECI | H20: ONCE | Q20: DIECI | R20: ONCE | AA20: DIECI | AB20: ONCE | AM20: DIECI | AN20: ONCE
G21: VEINTI | H21: DOCE | Q21: VEINTI | R21: DOCE | AA21: VEINTI | AB21: DOCE | AM21: VEINTI | AN21: DOCE
G22: TREINTA | H22: TRECE | Q22: TREINTA | R22: TRECE | AA22: TREINTA | AB22: TRECE | AM22: TREINTA | AN22: TRECE
G23: CUARENTA | H23: CATORCE | Q23: CUARENTA | R23: CATORCE | AA23: CUARENTA | AB23: CATORCE | AM23: CUARENTA | AN23: CATORCE
G24: CINCUENTA | H24: QUINCE | Q24: CINCUENTA | R24: QUINCE | AA24: CINCUENTA | AB24: QUINCE | AM24: CINCUENTA | AN24: QUINCE
G25: SESENTA | H25: DIECISEIS | Q25: SESENTA | R25: DIECISEIS | AA25: SESENTA | AB25: DIECISEIS | AM25: SESENTA | AN25: DIECISEIS
G26: SETENTA | H26: DIECISIETE | Q26: SETENTA | R26: DIECISIETE | AA26: SETENTA | AB26: DIECISIETE | AM26: SETENTA | AN26: DIECISIETE
G27: OCHENTA | H27: DIECIOCHO | Q27: OCHENTA | R27: DIECIOCHO | AA27: OCHENTA | AB27: DIECIOCHO | AM27: OCHENTA | AN27: DIECIOCHO
G28: NOVENTA | H28: DIECINUEVE | Q28: NOVENTA | R28: DIECINUEVE | AA28: NOVENTA | AB28: DIECINUEVE | AM28: NOVENTA | AN28: DIECINUEVE
H29: VEINTE | R29: VEINTE | AB29: VEINTE | AN29: VEINTE
H30: VEINTIUN | R30: VEINTIUN | AB30: VEINTIUN | AN30: VEINTIUN
B34: =RIGHT(B10,3) -> 711 | L34: =RIGHT(L10,3) -> 000 | V34: =RIGHT(V10,3) -> 135 | AH34: =RIGHT(AH10,3) -> 000
B35: 5 | L35: 5 | V35: 5 | AH35: 5
B36: =+B34+B35 -> 716 | L36: =+L34+L35 -> 5 | V36: =+V34+V35 -> 140 | AH36: =+AH34+AH35 -> 5
C37: =IF(B10<100,10,LEFT(RIGHT(B$10,3),1)) -> 7 | D37: =IF(B36=105,"CIEN",IF(B40=5,"",CHOOSE(C37,E37,E38,E39,E40,E41,E42,E43,E44,E45,E50))) -> SETECIENTOS | E37: CIENTO | M37: =IF(L10<100,10,LEFT(RIGHT(L$10,3),1)) -> 0 | N37: =IF(L36=105,"CIEN",IF(L40=5,"",CHOOSE(M37,O37,O38,O39,O40,O41,O42,O43,O44,O45,O50))) ->  | O37: CIENTO | W37: =IF(V10<100,10,LEFT(RIGHT(V$10,3),1)) -> 1 | X37: =IF(V36=105,"CIEN",IF(V40=5,"",CHOOSE(W37,Y37,Y38,Y39,Y40,Y41,Y42,Y43,Y44,Y45,Y50))) -> CIENTO | Y37: CIENTO | AI37: =IF(AH10<100,10,LEFT(RIGHT(AH$10,3),1)) -> 0 | AJ37: =IF(AH36=105,"CIEN",IF(AH40=5,"",CHOOSE(AI37,AK37,AK38,AK39,AK40,AK41,AK42,AK43,AK44,AK45,AK50))) ->  | AK37: CIENTO
B38: =+C37 -> 7 | E38: DOSCIENTOS | L38: =+M37 -> 0 | O38: DOSCIENTOS | V38: =+W37 -> 1 | Y38: DOSCIENTOS | AH38: =+AI37 -> 0 | AK38: DOSCIENTOS
B39: 5 | E39: TRECIENTOS | L39: 5 | O39: TRECIENTOS | V39: 5 | Y39: TRECIENTOS | AH39: 5 | AK39: TRECIENTOS
B40: =+B39+B38 -> 12 | E40: CUATROCIENTOS | L40: =+L39+L38 -> 5 | O40: CUATROCIENTOS | V40: =+V39+V38 -> 6 | Y40: CUATROCIENTOS | AH40: =+AH39+AH38 -> 5 | AK40: CUATROCIENTOS
E41: QUINIENTOS | O41: QUINIENTOS | Y41: QUINIENTOS | AK41: QUINIENTOS
E42: SEISCIENTOS | O42: SEISCIENTOS | Y42: SEISCIENTOS | AK42: SEISCIENTOS
E43: SETECIENTOS | O43: SETECIENTOS | Y43: SETECIENTOS | AK43: SETECIENTOS
E44: OCHOCIENTOS | O44: OCHOCIENTOS | Y44: OCHOCIENTOS | AK44: OCHOCIENTOS
E45: NOVECIENTOS | O45: NOVECIENTOS | Y45: NOVECIENTOS | AK45: NOVECIENTOS
B49: =RIGHT(B10,5) -> 21711 | C49: =+B49+1-1 -> 21711 | L49: =RIGHT(L10,5) -> 6000 | M49: =+L49+1-1 -> 6000 | V49: =RIGHT(V10,5) -> 55135 | W49: =+V49+1-1 -> 55135 | AH49: =RIGHT(AH10,5) -> 80000 | AI49: =+AH49+1-1 -> 80000
B50: =IF(AND(C49<10000,C49>999),LEFT(C49,1),LEFT(B49,2)) -> 21 | C50: =IF(+LEFT(RIGHT(B$50,2),2)<20,LEFT(RIGHT(B$50,2),2),RIGHT(B$50,1)) -> 1 | D50: =IF(E52<=22,E50,E51) -> 21 | E50: =RIGHT(B50,2) -> 21 | G50: Y UN | H50: UN | L50: =IF(AND(M49<10000,M49>999),LEFT(M49,1),LEFT(L49,2)) -> 6 | M50: =IF(+LEFT(RIGHT(L$50,2),2)<20,LEFT(RIGHT(L$50,2),2),RIGHT(L$50,1)) -> 6 | N50: =IF(O52<=22,O50,O51) -> 6 | O50: =RIGHT(L50,2) -> 6 | Q50: Y UN | R50: UN | V50: =IF(AND(W49<10000,W49>999),LEFT(W49,1),LEFT(V49,2)) -> 55 | W50: =IF(+LEFT(RIGHT(V$50,2),2)<20,LEFT(RIGHT(V$50,2),2),RIGHT(V$50,1)) -> 5 | X50: =IF(Y52<=22,Y50,Y51) -> 5 | Y50: =RIGHT(V50,2) -> 55 | AA50: Y UN | AB50: UN | AH50: =IF(AND(AI49<10000,AI49>999),LEFT(AI49,1),LEFT(AH49,2)) -> 80 | AI50: =IF(+LEFT(RIGHT(AH$50,2),2)<20,LEFT(RIGHT(AH$50,2),2),RIGHT(AH$50,1)) -> 0 | AJ50: =IF(AK52<=22,AK50,AK51) -> 0 | AK50: =RIGHT(AH50,2) -> 80 | AM50: Y UN | AN50: UN
B51: =+C50 -> 1 | C51: =IF(+LEFT(RIGHT(B$50,2),2)<20,LEFT(RIGHT(B$50,2),2),LEFT(RIGHT(B$50,2),1)) -> 2 | D51: =+D50 -> 21 | E51: =RIGHT(B50,1) -> 1 | G51: Y DOS | H51: DOS | L51: =+M50 -> 6 | M51: =IF(+LEFT(RIGHT(L$50,2),2)<20,LEFT(RIGHT(L$50,2),2),LEFT(RIGHT(L$50,2),1)) -> 6 | N51: =+N50 -> 6 | O51: =RIGHT(L50,1) -> 6 | Q51: Y DOS | R51: DOS | V51: =+W50 -> 5 | W51: =IF(+LEFT(RIGHT(V$50,2),2)<20,LEFT(RIGHT(V$50,2),2),LEFT(RIGHT(V$50,2),1)) -> 5 | X51: =+X50 -> 5 | Y51: =RIGHT(V50,1) -> 5 | AA51: Y DOS | AB51: DOS | AH51: =+AI50 -> 0 | AI51: =IF(+LEFT(RIGHT(AH$50,2),2)<20,LEFT(RIGHT(AH$50,2),2),LEFT(RIGHT(AH$50,2),1)) -> 8 | AJ51: =+AJ50 -> 0 | AK51: =RIGHT(AH50,1) -> 0 | AM51: Y DOS | AN51: DOS
B52: 5 | C52: =5+C51 -> 7 | D52: 5 | E52: =1+E50 -> 22 | G52: Y TRES | H52: TRES | L52: 5 | M52: =5+M51 -> 11 | N52: 5 | O52: =1+O50 -> 7 | Q52: Y TRES | R52: TRES | V52: 5 | W52: =5+W51 -> 10 | X52: 5 | Y52: =1+Y50 -> 56 | AA52: Y TRES | AB52: TRES | AH52: 5 | AI52: =5+AI51 -> 13 | AJ52: 5 | AK52: =1+AK50 -> 81 | AM52: Y TRES | AN52: TRES
B53: =+B52+B51+C51 -> 8 | D53: =+D52+D51 -> 26 | E53: =IF(B53=5,"",CHOOSE(D50,H50,H51,H52,H53,H54,H55,H56,H57,H58,H59,H60,H61,H62,H63,H64,H65,H66,H67,H68,H69,H70)) -> VEINTIUN | G53: Y CUATRO | H53: CUATRO | L53: =+L52+L51+M51 -> 17 | N53: =+N52+N51 -> 11 | O53: =IF(L53=5,"",CHOOSE(N50,R50,R51,R52,R53,R54,R55,R56,R57,R58,R59,R60,R61,R62,R63,R64,R65,R66,R67,R68,R69,R70)) -> SEIS | Q53: Y CUATRO | R53: CUATRO | V53: =+V52+V51+W51 -> 15 | X53: =+X52+X51 -> 10 | Y53: =IF(V53=5,"",CHOOSE(X50,AB50,AB51,AB52,AB53,AB54,AB55,AB56,AB57,AB58,AB59,AB60,AB61,AB62,AB63,AB64,AB65,AB66,AB67,AB68,AB69,AB70)) -> CINCO | AA53: Y CUATRO | AB53: CUATRO | AH53: =+AH52+AH51+AI51 -> 13 | AJ53: =+AJ52+AJ51 -> 5 | AK53: =IF(AH53=5,"",CHOOSE(AJ50,AN50,AN51,AN52,AN53,AN54,AN55,AN56,AN57,AN58,AN59,AN60,AN61,AN62,AN63,AN64,AN65,AN66,AN67,AN68,AN69,AN70)) ->  | AM53: Y CUATRO | AN53: CUATRO
E54: =IF(D53=5,"",CHOOSE(D50,G50,G51,G52,G53,G54,G55,G56,G57,G58,G59)) ->  | G54: Y CINCO | H54: CINCO | O54: =IF(N53=5,"",CHOOSE(N50,Q50,Q51,Q52,Q53,Q54,Q55,Q56,Q57,Q58,Q59)) -> Y SEIS | Q54: Y CINCO | R54: CINCO | Y54: =IF(X53=5,"",CHOOSE(X50,AA50,AA51,AA52,AA53,AA54,AA55,AA56,AA57,AA58,AA59)) -> Y CINCO | AA54: Y CINCO | AB54: CINCO | AK54: =IF(AJ53=5,"",CHOOSE(AJ50,AM50,AM51,AM52,AM53,AM54,AM55,AM56,AM57,AM58,AM59)) ->  | AM54: Y CINCO | AN54: CINCO
E55: =CHOOSE(C51,G60,G61,G62,G63,G64,G65,G66,G67,G68,G69) -> VEINTI | G55: Y SEIS | H55: SEIS | O55: =CHOOSE(M51,Q60,Q61,Q62,Q63,Q64,Q65,Q66,Q67,Q68,Q69) -> SESENTA | Q55: Y SEIS | R55: SEIS | Y55: =CHOOSE(W51,AA60,AA61,AA62,AA63,AA64,AA65,AA66,AA67,AA68,AA69) -> CINCUENTA | AA55: Y SEIS | AB55: SEIS | AK55: =CHOOSE(AI51,AM60,AM61,AM62,AM63,AM64,AM65,AM66,AM67,AM68,AM69) -> OCHENTA | AM55: Y SEIS | AN55: SEIS
G56: Y SIETE | H56: SIETE | Q56: Y SIETE | R56: SIETE | AA56: Y SIETE | AB56: SIETE | AM56: Y SIETE | AN56: SIETE
E57: =IF(AND(C49>=1000,C49<2000,B10<99000),"",IF(E52<=22,E53,IF(E52<=30,CONCATENATE(E55,E53),CONCATENATE(E55,E54)))) -> VEINTIUN | G57: Y OCHO | H57: OCHO | O57: =IF(AND(M49>=1000,M49<2000,L10<99000),"",IF(O52<=22,O53,IF(O52<=30,CONCATENATE(O55,O53),CONCATENATE(O55,O54)))) -> SEIS | Q57: Y OCHO | R57: OCHO | Y57: =IF(AND(W49>=1000,W49<2000,V10<99000),"",IF(Y52<=22,Y53,IF(Y52<=30,CONCATENATE(Y55,Y53),CONCATENATE(Y55,Y54)))) -> CINCUENTA Y CINCO | AA57: Y OCHO | AB57: OCHO | AK57: =IF(AND(AI49>=1000,AI49<2000,AH10<99000),"",IF(AK52<=22,AK53,IF(AK52<=30,CONCATENATE(AK55,AK53),CONCATENATE(AK55,AK54)))) -> OCHENTA | AM57: Y OCHO | AN57: OCHO
G58: Y NUEVE | H58: NUEVE | Q58: Y NUEVE | R58: NUEVE | AA58: Y NUEVE | AB58: NUEVE | AM58: Y NUEVE | AN58: NUEVE
H59: DIEZ | R59: DIEZ | AB59: DIEZ | AN59: DIEZ
G60: DIECI | H60: ONCE | Q60: DIECI | R60: ONCE | AA60: DIECI | AB60: ONCE | AM60: DIECI | AN60: ONCE
G61: VEINTI | H61: DOCE | Q61: VEINTI | R61: DOCE | AA61: VEINTI | AB61: DOCE | AM61: VEINTI | AN61: DOCE
G62: TREINTA | H62: TRECE | Q62: TREINTA | R62: TRECE | AA62: TREINTA | AB62: TRECE | AM62: TREINTA | AN62: TRECE
G63: CUARENTA | H63: CATORCE | Q63: CUARENTA | R63: CATORCE | AA63: CUARENTA | AB63: CATORCE | AM63: CUARENTA | AN63: CATORCE
G64: CINCUENTA | H64: QUINCE | Q64: CINCUENTA | R64: QUINCE | AA64: CINCUENTA | AB64: QUINCE | AM64: CINCUENTA | AN64: QUINCE
G65: SESENTA | H65: DIECISEIS | Q65: SESENTA | R65: DIECISEIS | AA65: SESENTA | AB65: DIECISEIS | AM65: SESENTA | AN65: DIECISEIS
G66: SETENTA | H66: DIECISIETE | Q66: SETENTA | R66: DIECISIETE | AA66: SETENTA | AB66: DIECISIETE | AM66: SETENTA | AN66: DIECISIETE
B67: =RIGHT(B$10,6) -> 21711 | G67: OCHENTA | H67: DIECIOCHO | L67: =RIGHT(L$10,6) -> 6000 | Q67: OCHENTA | R67: DIECIOCHO | V67: =RIGHT(V$10,6) -> 55135 | AA67: OCHENTA | AB67: DIECIOCHO | AH67: =RIGHT(AH$10,6) -> 80000 | AM67: OCHENTA | AN67: DIECIOCHO
B68: =LEFT(B67,3) -> 217 | G68: NOVENTA | H68: DIECINUEVE | L68: =LEFT(L67,3) -> 600 | Q68: NOVENTA | R68: DIECINUEVE | V68: =LEFT(V67,3) -> 551 | AA68: NOVENTA | AB68: DIECINUEVE | AH68: =LEFT(AH67,3) -> 800 | AM68: NOVENTA | AN68: DIECINUEVE
B69: 5 | H69: VEINTE | L69: 5 | R69: VEINTE | V69: 5 | AB69: VEINTE | AH69: 5 | AN69: VEINTE
B70: =+B68+B69 -> 222 | H70: VEINTIUN | L70: =+L68+L69 -> 605 | R70: VEINTIUN | V70: =+V68+V69 -> 556 | AB70: VEINTIUN | AH70: =+AH68+AH69 -> 805 | AN70: VEINTIUN
C71: =IF(B10<100,10,LEFT(RIGHT(B$10,6),1)) -> 2 | D71: =IF(B70=105,"CIEN",IF(B74=5,"",CHOOSE(C71,E71,E72,E73,E74,E75,E76,E77,E78,E79,E80))) -> DOSCIENTOS | E71: CIENTO | M71: =IF(L10<100,10,LEFT(RIGHT(L$10,6),1)) -> 6 | N71: =IF(L70=105,"CIEN",IF(L74=5,"",CHOOSE(M71,O71,O72,O73,O74,O75,O76,O77,O78,O79,O80))) -> SEISCIENTOS | O71: CIENTO | W71: =IF(V10<100,10,LEFT(RIGHT(V$10,6),1)) -> 5 | X71: =IF(V70=105,"CIEN",IF(V74=5,"",CHOOSE(W71,Y71,Y72,Y73,Y74,Y75,Y76,Y77,Y78,Y79,Y80))) -> QUINIENTOS | Y71: CIENTO | AI71: =IF(AH10<100,10,LEFT(RIGHT(AH$10,6),1)) -> 8 | AJ71: =IF(AH70=105,"CIEN",IF(AH74=5,"",CHOOSE(AI71,AK71,AK72,AK73,AK74,AK75,AK76,AK77,AK78,AK79,AK80))) -> OCHOCIENTOS | AK71: CIENTO
B72: =+C71 -> 2 | E72: DOSCIENTOS | L72: =+M71 -> 6 | O72: DOSCIENTOS | V72: =+W71 -> 5 | Y72: DOSCIENTOS | AH72: =+AI71 -> 8 | AK72: DOSCIENTOS
B73: 5 | E73: TRECIENTOS | L73: 5 | O73: TRECIENTOS | V73: 5 | Y73: TRECIENTOS | AH73: 5 | AK73: TRECIENTOS
B74: =+B73+B72 -> 7 | E74: CUATROCIENTOS | L74: =+L73+L72 -> 11 | O74: CUATROCIENTOS | V74: =+V73+V72 -> 10 | Y74: CUATROCIENTOS | AH74: =+AH73+AH72 -> 13 | AK74: CUATROCIENTOS
E75: QUINIENTOS | O75: QUINIENTOS | Y75: QUINIENTOS | AK75: QUINIENTOS
E76: SEISCIENTOS | O76: SEISCIENTOS | Y76: SEISCIENTOS | AK76: SEISCIENTOS
E77: SETECIENTOS | O77: SETECIENTOS | Y77: SETECIENTOS | AK77: SETECIENTOS
E78: OCHOCIENTOS | O78: OCHOCIENTOS | Y78: OCHOCIENTOS | AK78: OCHOCIENTOS
E79: NOVECIENTOS | O79: NOVECIENTOS | Y79: NOVECIENTOS | AK79: NOVECIENTOS
B84: =RIGHT(B10,8) -> 21711 | C84: =+B84+1-1 -> 21711 | L84: =RIGHT(L10,8) -> 6000 | M84: =+L84+1-1 -> 6000 | V84: =RIGHT(V10,8) -> 55135 | W84: =+V84+1-1 -> 55135 | AH84: =RIGHT(AH10,8) -> 80000 | AI84: =+AH84+1-1 -> 80000
B85: =IF(AND(C84<10000000,C84>999999),LEFT(C84,1),LEFT(B84,2)) -> 21 | C85: =IF(+LEFT(RIGHT(B$85,2),2)<20,LEFT(RIGHT(B$85,2),2),RIGHT(B$85,2)) -> 21 | D85: =IF(E87<=22,E85,E86) -> 21 | E85: =RIGHT(B85,2) -> 21 | G85: Y UN | H85: UN | L85: =IF(AND(M84<10000000,M84>999999),LEFT(M84,1),LEFT(L84,2)) -> 60 | M85: =IF(+LEFT(RIGHT(L$85,2),2)<20,LEFT(RIGHT(L$85,2),2),RIGHT(L$85,2)) -> 60 | N85: =IF(O87<=22,O85,O86) -> 0 | O85: =RIGHT(L85,2) -> 60 | Q85: Y UN | R85: UN | V85: =IF(AND(W84<10000000,W84>999999),LEFT(W84,1),LEFT(V84,2)) -> 55 | W85: =IF(+LEFT(RIGHT(V$85,2),2)<20,LEFT(RIGHT(V$85,2),2),RIGHT(V$85,2)) -> 55 | X85: =IF(Y87<=22,Y85,Y86) -> 5 | Y85: =RIGHT(V85,2) -> 55 | AA85: Y UN | AB85: UN | AH85: =IF(AND(AI84<10000000,AI84>999999),LEFT(AI84,1),LEFT(AH84,2)) -> 80 | AI85: =IF(+LEFT(RIGHT(AH$85,2),2)<20,LEFT(RIGHT(AH$85,2),2),RIGHT(AH$85,2)) -> 80 | AJ85: =IF(AK87<=22,AK85,AK86) -> 0 | AK85: =RIGHT(AH85,2) -> 80 | AM85: Y UN | AN85: UN
B86: =+C85 -> 21 | C86: =IF(+LEFT(RIGHT(B$10,8),2)<20,LEFT(RIGHT(B$86,2),2),LEFT(RIGHT(B$86,2),1)) -> 2 | D86: =+D85 -> 21 | E86: =RIGHT(B85,1) -> 1 | G86: Y DOS | H86: DOS | L86: =+M85 -> 60 | M86: =IF(+LEFT(RIGHT(L$10,8),2)<20,LEFT(RIGHT(L$86,2),2),LEFT(RIGHT(L$86,2),1)) -> 6 | N86: =+N85 -> 0 | O86: =RIGHT(L85,1) -> 0 | Q86: Y DOS | R86: DOS | V86: =+W85 -> 55 | W86: =IF(+LEFT(RIGHT(V$10,8),2)<20,LEFT(RIGHT(V$86,2),2),LEFT(RIGHT(V$86,2),1)) -> 5 | X86: =+X85 -> 5 | Y86: =RIGHT(V85,1) -> 5 | AA86: Y DOS | AB86: DOS | AH86: =+AI85 -> 80 | AI86: =IF(+LEFT(RIGHT(AH$10,8),2)<20,LEFT(RIGHT(AH$86,2),2),LEFT(RIGHT(AH$86,2),1)) -> 8 | AJ86: =+AJ85 -> 0 | AK86: =RIGHT(AH85,1) -> 0 | AM86: Y DOS | AN86: DOS
B87: 5 | C87: =5+C86 -> 7 | D87: 5 | E87: =1+E85 -> 22 | G87: Y TRES | H87: TRES | L87: 5 | M87: =5+M86 -> 11 | N87: 5 | O87: =1+O85 -> 61 | Q87: Y TRES | R87: TRES | V87: 5 | W87: =5+W86 -> 10 | X87: 5 | Y87: =1+Y85 -> 56 | AA87: Y TRES | AB87: TRES | AH87: 5 | AI87: =5+AI86 -> 13 | AJ87: 5 | AK87: =1+AK85 -> 81 | AM87: Y TRES | AN87: TRES
B88: =+B87+B86+C86 -> 28 | D88: =+D87+D86 -> 26 | E88: =IF(D85="00","",CHOOSE(D85,H85,H86,H87,H88,H89,H90,H91,H92,H93,H94,H95,H96,H97,H98,H99,H100,H101,H102,H103,H104,H105)) -> VEINTIUN | G88: Y CUATRO | H88: CUATRO | L88: =+L87+L86+M86 -> 71 | N88: =+N87+N86 -> 5 | O88: =IF(N85="00","",CHOOSE(N85,R85,R86,R87,R88,R89,R90,R91,R92,R93,R94,R95,R96,R97,R98,R99,R100,R101,R102,R103,R104,R105)) ->  | Q88: Y CUATRO | R88: CUATRO | V88: =+V87+V86+W86 -> 65 | X88: =+X87+X86 -> 10 | Y88: =IF(X85="00","",CHOOSE(X85,AB85,AB86,AB87,AB88,AB89,AB90,AB91,AB92,AB93,AB94,AB95,AB96,AB97,AB98,AB99,AB100,AB101,AB102,AB103,AB104,AB105)) -> CINCO | AA88: Y CUATRO | AB88: CUATRO | AH88: =+AH87+AH86+AI86 -> 93 | AJ88: =+AJ87+AJ86 -> 5 | AK88: =IF(AJ85="00","",CHOOSE(AJ85,AN85,AN86,AN87,AN88,AN89,AN90,AN91,AN92,AN93,AN94,AN95,AN96,AN97,AN98,AN99,AN100,AN101,AN102,AN103,AN104,AN105)) ->  | AM88: Y CUATRO | AN88: CUATRO
E89: =IF(D88=5,"",CHOOSE(D85,G85,G86,G87,G88,G89,G90,G91,G92,G93,G94)) ->  | G89: Y CINCO | H89: CINCO | O89: =IF(N88=5,"",CHOOSE(N85,Q85,Q86,Q87,Q88,Q89,Q90,Q91,Q92,Q93,Q94)) ->  | Q89: Y CINCO | R89: CINCO | Y89: =IF(X88=5,"",CHOOSE(X85,AA85,AA86,AA87,AA88,AA89,AA90,AA91,AA92,AA93,AA94)) -> Y CINCO | AA89: Y CINCO | AB89: CINCO | AK89: =IF(AJ88=5,"",CHOOSE(AJ85,AM85,AM86,AM87,AM88,AM89,AM90,AM91,AM92,AM93,AM94)) ->  | AM89: Y CINCO | AN89: CINCO
E90: =IF(C86="0","",CHOOSE(C86,G95,G96,G97,G98,G99,G100,G101,G102,G103,G104)) -> VEINTI | G90: Y SEIS | H90: SEIS | O90: =IF(M86="0","",CHOOSE(M86,Q95,Q96,Q97,Q98,Q99,Q100,Q101,Q102,Q103,Q104)) -> SESENTA | Q90: Y SEIS | R90: SEIS | Y90: =IF(W86="0","",CHOOSE(W86,AA95,AA96,AA97,AA98,AA99,AA100,AA101,AA102,AA103,AA104)) -> CINCUENTA | AA90: Y SEIS | AB90: SEIS | AK90: =IF(AI86="0","",CHOOSE(AI86,AM95,AM96,AM97,AM98,AM99,AM100,AM101,AM102,AM103,AM104)) -> OCHENTA | AM90: Y SEIS | AN90: SEIS
G91: Y SIETE | H91: SIETE | Q91: Y SIETE | R91: SIETE | AA91: Y SIETE | AB91: SIETE | AM91: Y SIETE | AN91: SIETE
E92: =IF(E87<=22,E88,IF(E87<=30,CONCATENATE(E90,E88),CONCATENATE(E90,E89))) -> VEINTIUN | G92: Y OCHO | H92: OCHO | O92: =IF(O87<=22,O88,IF(O87<=30,CONCATENATE(O90,O88),CONCATENATE(O90,O89))) -> SESENTA | Q92: Y OCHO | R92: OCHO | Y92: =IF(Y87<=22,Y88,IF(Y87<=30,CONCATENATE(Y90,Y88),CONCATENATE(Y90,Y89))) -> CINCUENTA Y CINCO | AA92: Y OCHO | AB92: OCHO | AK92: =IF(AK87<=22,AK88,IF(AK87<=30,CONCATENATE(AK90,AK88),CONCATENATE(AK90,AK89))) -> OCHENTA | AM92: Y OCHO | AN92: OCHO
E93: =+IF(AND(B10<2000000,B10>999999)," ","ES ") -> ES | G93: Y NUEVE | H93: NUEVE | O93: =+IF(AND(L10<2000000,L10>999999)," ","ES ") -> ES | Q93: Y NUEVE | R93: NUEVE | Y93: =+IF(AND(V10<2000000,V10>999999)," ","ES ") -> ES | AA93: Y NUEVE | AB93: NUEVE | AK93: =+IF(AND(AH10<2000000,AH10>999999)," ","ES ") -> ES | AM93: Y NUEVE | AN93: NUEVE
H94: DIEZ | R94: DIEZ | AB94: DIEZ | AN94: DIEZ
G95: DIECI | H95: ONCE | Q95: DIECI | R95: ONCE | AA95: DIECI | AB95: ONCE | AM95: DIECI | AN95: ONCE
G96: VEINTI | H96: DOCE | Q96: VEINTI | R96: DOCE | AA96: VEINTI | AB96: DOCE | AM96: VEINTI | AN96: DOCE
G97: TREINTA | H97: TRECE | Q97: TREINTA | R97: TRECE | AA97: TREINTA | AB97: TRECE | AM97: TREINTA | AN97: TRECE
G98: CUARENTA | H98: CATORCE | Q98: CUARENTA | R98: CATORCE | AA98: CUARENTA | AB98: CATORCE | AM98: CUARENTA | AN98: CATORCE
G99: CINCUENTA | H99: QUINCE | Q99: CINCUENTA | R99: QUINCE | AA99: CINCUENTA | AB99: QUINCE | AM99: CINCUENTA | AN99: QUINCE
G100: SESENTA | H100: DIECISEIS | Q100: SESENTA | R100: DIECISEIS | AA100: SESENTA | AB100: DIECISEIS | AM100: SESENTA | AN100: DIECISEIS
G101: SETENTA | H101: DIECISIETE | Q101: SETENTA | R101: DIECISIETE | AA101: SETENTA | AB101: DIECISIETE | AM101: SETENTA | AN101: DIECISIETE
B102: =RIGHT(B$10,9) -> 21711 | G102: OCHENTA | H102: DIECIOCHO | L102: =RIGHT(L$10,9) -> 6000 | Q102: OCHENTA | R102: DIECIOCHO | V102: =RIGHT(V$10,9) -> 55135 | AA102: OCHENTA | AB102: DIECIOCHO | AH102: =RIGHT(AH$10,9) -> 80000 | AM102: OCHENTA | AN102: DIECIOCHO
B103: =LEFT(B102,3) -> 217 | G103: NOVENTA | H103: DIECINUEVE | L103: =LEFT(L102,3) -> 600 | Q103: NOVENTA | R103: DIECINUEVE | V103: =LEFT(V102,3) -> 551 | AA103: NOVENTA | AB103: DIECINUEVE | AH103: =LEFT(AH102,3) -> 800 | AM103: NOVENTA | AN103: DIECINUEVE
B104: 5 | H104: VEINTE | L104: 5 | R104: VEINTE | V104: 5 | AB104: VEINTE | AH104: 5 | AN104: VEINTE
B105: =+B103+B104 -> 222 | H105: VEINTIUN | L105: =+L103+L104 -> 605 | R105: VEINTIUN | V105: =+V103+V104 -> 556 | AB105: VEINTIUN | AH105: =+AH103+AH104 -> 805 | AN105: VEINTIUN
C106: =IF(B103<100,10,LEFT(RIGHT(B$10,9),1)) -> 2 | D106: =IF(B105=105,"CIEN",IF(B109=5,"",CHOOSE(C106,E106,E107,E108,E109,E110,E111,E112,E113,E114,E115))) -> DOSCIENTOS | E106: CIENTO | M106: =IF(L103<100,10,LEFT(RIGHT(L$10,9),1)) -> 6 | N106: =IF(L105=105,"CIEN",IF(L109=5,"",CHOOSE(M106,O106,O107,O108,O109,O110,O111,O112,O113,O114,O115))) -> SEISCIENTOS | O106: CIENTO | W106: =IF(V103<100,10,LEFT(RIGHT(V$10,9),1)) -> 5 | X106: =IF(V105=105,"CIEN",IF(V109=5,"",CHOOSE(W106,Y106,Y107,Y108,Y109,Y110,Y111,Y112,Y113,Y114,Y115))) -> QUINIENTOS | Y106: CIENTO | AI106: =IF(AH103<100,10,LEFT(RIGHT(AH$10,9),1)) -> 8 | AJ106: =IF(AH105=105,"CIEN",IF(AH109=5,"",CHOOSE(AI106,AK106,AK107,AK108,AK109,AK110,AK111,AK112,AK113,AK114,AK115))) -> OCHOCIENTOS | AK106: CIENTO
B107: =+C106 -> 2 | E107: DOSCIENTOS | L107: =+M106 -> 6 | O107: DOSCIENTOS | V107: =+W106 -> 5 | Y107: DOSCIENTOS | AH107: =+AI106 -> 8 | AK107: DOSCIENTOS
B108: 5 | E108: TRECIENTOS | L108: 5 | O108: TRECIENTOS | V108: 5 | Y108: TRECIENTOS | AH108: 5 | AK108: TRECIENTOS
B109: =+B108+B107 -> 7 | E109: CUATROCIENTOS | L109: =+L108+L107 -> 11 | O109: CUATROCIENTOS | V109: =+V108+V107 -> 10 | Y109: CUATROCIENTOS | AH109: =+AH108+AH107 -> 13 | AK109: CUATROCIENTOS
E110: QUINIENTOS | O110: QUINIENTOS | Y110: QUINIENTOS | AK110: QUINIENTOS
E111: SEISCIENTOS | O111: SEISCIENTOS | Y111: SEISCIENTOS | AK111: SEISCIENTOS
E112: SETECIENTOS | O112: SETECIENTOS | Y112: SETECIENTOS | AK112: SETECIENTOS
E113: OCHOCIENTOS | O113: OCHOCIENTOS | Y113: OCHOCIENTOS | AK113: OCHOCIENTOS
E114: NOVECIENTOS | O114: NOVECIENTOS | Y114: NOVECIENTOS | AK114: NOVECIENTOS
F116: OCHOCIENTOS | P116: OCHOCIENTOS | Z116: OCHOCIENTOS | AL116: OCHOCIENTOS
F117: OCHOCIENTOS | P117: OCHOCIENTOS | Z117: OCHOCIENTOS | AL117: OCHOCIENTOS
B141: 12345678 | L141: 12345678 | V141: 12345678 | AH141: 12345678
B142: =RIGHT(#REF!,2) ->  | L142: =RIGHT(#REF!,2) ->  | V142: =RIGHT(#REF!,2) ->  | AH142: =RIGHT(#REF!,2) -> 
B143: =LEFT(RIGHT(#REF!,3),1) ->  | L143: =LEFT(RIGHT(#REF!,3),1) ->  | V143: =LEFT(RIGHT(#REF!,3),1) ->  | AH143: =LEFT(RIGHT(#REF!,3),1) -> 
B144: =LEFT(RIGHT(#REF!,5),2) ->  | L144: =LEFT(RIGHT(#REF!,5),2) ->  | V144: =LEFT(RIGHT(#REF!,5),2) ->  | AH144: =LEFT(RIGHT(#REF!,5),2) -> 
B145: =LEFT(RIGHT(#REF!,6),1) ->  | L145: =LEFT(RIGHT(#REF!,6),1) ->  | V145: =LEFT(RIGHT(#REF!,6),1) ->  | AH145: =LEFT(RIGHT(#REF!,6),1) -> 
B146: =LEFT(RIGHT(#REF!,8),2) ->  | L146: =LEFT(RIGHT(#REF!,8),2) ->  | V146: =LEFT(RIGHT(#REF!,8),2) ->  | AH146: =LEFT(RIGHT(#REF!,8),2) -> 

Sheet SERV
B2: TIPO | D2: DESCRIPCION | E2: PORCENTAJE MONTO | F2: COMISION | G2: PENALIZACION | H2: AL CLIENTE | I2: FIN
B3: 1 | C3: EN GENERAL | D3: EN ASESORIA Y GESTION PARA REALIZAR TRAMITES | E3: 0.3 | F3: =+REG!$C$16*E3+1500 -> 24554.043 | G3: =+REG!$C$16*15% -> 11527.0215 | H3: =+REG!$C$16-(+REG!$C$16*0.2)-SERV!F3 -> 36923.405
B4: 2 | C4: MEJORA, REPARA Y RENUEVA | D4: EN ASESORIA EN MANTENIMIENTO, REMODELACION Y PRESUPUESTO | E4: 0.2 | F4: =+REG!$C$16*E4 -> 15369.362 | G4: 6000 | H4: =+REG!C16-(REG!C16*0.2) -> 61477.448 | K4: EMPRESA | L4: ADMINISTRADORA EN REMODELACION COMERCIAL DE MEXICO SAS DE C.V.
B5: 3 | C5: MEJORA, REPARA Y RENUEVA | D5: EN ASESORIA EN MANTENIMIENTO, REMODELACION Y PRESUPUESTO | E5: 0.2 | F5: =+REG!$C$16*E5+2000 -> 17369.362 | G5: 6000 | H5: =+REG!C16-(REG!C16*0.2+2000) -> 59477.448 | K5: RFC | L5: ARM220824UJ7
B6: 4 | C6: MEJORA, REPARA Y RENUEVA | D6: EN ASESORIA EN MANTENIMIENTO, REMODELACION Y PRESUPUESTO | E6: 0.25 | F6: =+REG!$C$16*E6 -> 19211.7025 | G6: 6000 | H6: =+REG!C16-(REG!C16*0.25) -> 57635.1075 | K6: REPRESENTAD | L6: ARMANDO CORDOVA MARTINEZ
B7: 5 | C7: MEJORA, REPARA Y RENUEVA | D7: EN ASESORIA EN MANTENIMIENTO, REMODELACION Y PRESUPUESTO | E7: 0.25 | F7: =+REG!$C$16*E7+2500 -> 21711.7025 | G7: 6000 | H7: =+REG!C16-(REG!C16*0.25+2500) -> 55135.1075 | K7: DOMICILIO | L7: AV. DEL ROSAL 245 – A MOLINO DE ROSAS, ALVARO OBREGON C.P. 01470 CDMX
B8: 6 | C8: FINANC MOD 40 | D8: ASESORIA Y GESTION EN MATERIA DE MOD 40, CON LA FINALIDAD QUE AL MOMENTO DE SU RETIRO TENGA LA LIQUIDEZ SUFICIENTE PARA VIVIR DE MANERA DIGNA | E8: 0.3 | F8: =+REG!$C$16*E8+1500 -> 24554.043 | G8: =+REG!$C$16*15% -> 11527.0215 | H8: =+REG!$C$16*E8+1500 -> 24554.043 | K8: BANCO | L8: BBVA BANCOMER.
B9: 7 | C9: PREST JUB Y PENS | D9: GESTION PARA REALIZAR CREDITO Y PRESTAMOS PARA PESONAL JUBILADO Y/O PENSIONADO | E9: 0.3 | F9: =+REG!$C$16*E9+1500 -> 24554.043 | G9: =+REG!$C$16*15% -> 11527.0215 | H9: 30000 | K9: CUENTA A DEP | L9: 046 974 88 22 CLABE INTERBANCARIA 012 180 00469748822 4
B10: 8 | C10: IMSS ALTA | D10: GESTION TRAMITAR ANTE EL IMSS, CON LA FINALIDAD QUE OBTENGA LOS BENEFICIOS QUE LA INSTITUCION OTORGA | E10: 3500 | F10: =+E10 -> 3500 | G10: =+REG!$C$16*15% -> 11527.0215 | H10: 0
B11: 9 | C11: AYUDA DE DESEMPLEO | D11: OTRO | E11: 0.3 | F11: =+K15*E11 -> 977.13 | G11: =+REG!$C$16*15% -> 11527.0215 | H11: =+K15-F11 -> 2279.97
B12: 10 | C12: OTRO | D12: OTRO | E12: 0.3 | F12: =+REG!$C$16*E12+1500 -> 24554.043 | G12: =+REG!$C$16*15% -> 11527.0215 | H12: =+REG!$C$16*E12+1500 -> 24554.043 | K12: CALCULO | L12: AYUDA DESEMPLEO
B13: 11 | C13: VARIOS | D13: VARIOS | K13: 108.57 | L13: UMA DIARIA
B14: 12 | C14: PENSION | D14: ASESORIA Y GESTION EN MATERIA DE PENSION, CON LA FINALIDAD QUE AL MOMENTO DE SU RETIRO TOME LA MEJOR DECISIÓN PARA VIVIR DIGNAMENTE | E14: 0.3 | F14: =+REG!$C$16*E14+1500 -> 24554.043 | G14: =+REG!$C$16*15% -> 11527.0215 | H14: =+REG!$C$16*E14+1500 -> 24554.043
B15: 13 | C15: CONTRATO DE CONTABILIDAD | D15: PENDIENTE A ENTREGAR | K15: =+K13*30 -> 3257.1 | L15: *30 DIAS
B16: 14
B17: 15
B18: 16
B19: 17
B20: 18
B21: 19
B22: 20

Sheet REG
A2: 1 | B2: EMPRESA | C2: ADMINISTRADORA EN REMODELACION COMERCIAL DE MEXICO SAS DE C.V.
B3: RFC | C3: ARM220824UJ7
B4: REPRESENTAD | C4: ARMANDO CORDOVA MARTINEZ
B5: DOMICILIO | C5: AV. DEL ROSAL 245 – A MOLINO DE ROSAS, ALVARO OBREGON C.P. 01470 CDMX
B6: BANCO | C6: BBVA BANCOMER.
B7: CUENTA A DEP | C7: 046 974 88 22 CLABE INTERBANCARIA 012 180 00469748822 4
B8: SERVICIOS POR | C8: 5
B9: TIPO DE SERVICIO | C9: =VLOOKUP($C$8,SERVICIOS,2) -> MEJORA, REPARA Y RENUEVA
B10: descripcion de servicio | C10: =VLOOKUP($C$8,SERVICIOS,3) -> EN ASESORIA EN MANTENIMIENTO, REMODELACION Y PRESUPUESTO
B11: NOMBRE CLIENTE | C11: JOSE ANTONIO PEREZ FLORES
B12: CURP | C12: PEFA910304HDFRLN06
B13: CLAVE ELECTOR | C13: PRFLAN91030409H700
B14: DOMICILIO | C14: CELAYA 8 PROGRESO ATIZAPAN C.P. 01080 ALVARO OBREGON, CDMX
B15: FECHA | C15: =TODAY() -> 2026-04-09
B16: IMPORTE CREDITO | C16: 76846.81
B17: MONTO | C17: =VLOOKUP($C$8,SERVICIOS,5) -> 21711.7025
B18: IMPORTE LETRA | C18: =+LETRA!B3 -> VEINTIUN MIL SETECIENTOS ONCE PESOS 70/100 M.N.
B19: IMPORTE | C19: =VLOOKUP($C$8,SERVICIOS,6) -> 6000
B20: IMPORTE LETRA | C20: =+LETRA!L3 -> SEIS MIL PESOS 00/100 M.N.
B21: AL CLIENTE | C21: =VLOOKUP($C$8,SERVICIOS,7) -> 55135.1075
B22: IMPORTE LETRA | C22: =+LETRA!V3 -> CINCUENTA Y CINCO MIL CIENTO TREINTA Y CINCO PESOS 11/100 M.N.
C25: COMPROBACION:
B26: COMISION | C26: =+C16*0.2+2500 -> 17869.362
B27: DEPOSITO FINAL PARA CLIENTE | C27: =+C16-C26 -> 58977.448

Sheet CTRL
B2: EMPRESA | C2: RFC | D2: REPRESENTAD | E2: DOMICILIO | F2: BANCO | G2: CUENTA A DEP | H2: SERVICIO | I2: TIPO DE SERVICIO | J2: descripcion de servicio | K2: NOMBRE CLIENTE | L2: CURP | M2: CLAVE ELECTOR | N2: DOMICILIO2 | O2: FECHA | P2: IMPORTE CREDITO | Q2: MONTO | R2: IMPORTE LETRA | S2: IMPORTE INDEM | T2: IMPORTE LETRA PENALIZACION | U2: AL CLIENTE | V2: IMPORTE LETRA4 | W2: FIN | X2: Columna1 | Y2: Columna2 | Z2: Columna3 | AA2: Columna4 | AB2: Columna5 | AC2: Columna6 | AD2: Columna7 | AE2: Columna8 | AF2: Columna9 | AG2: Columna10 | AH2: Columna11
A3: 1 | B3: =+REG!C2 -> ADMINISTRADORA EN REMODELACION COMERCIAL DE MEXICO SAS DE C.V. | C3: =+REG!C3 -> ARM220824UJ7 | D3: =+REG!C4 -> ARMANDO CORDOVA MARTINEZ | E3: =+REG!$C5 -> AV. DEL ROSAL 245 – A MOLINO DE ROSAS, ALVARO OBREGON C.P. 01470 CDMX | F3: =+REG!$C6 -> BBVA BANCOMER. | G3: =+REG!$C7 -> 046 974 88 22 CLABE INTERBANCARIA 012 180 00469748822 4 | H3: =+REG!$C8 -> 5 | I3: =+REG!$C9 -> MEJORA, REPARA Y RENUEVA | J3: =+REG!$C10 -> EN ASESORIA EN MANTENIMIENTO, REMODELACION Y PRESUPUESTO | K3: =+REG!$C11 -> JOSE ANTONIO PEREZ FLORES | L3: =+REG!$C12 -> PEFA910304HDFRLN06 | M3: =+REG!$C13 -> PRFLAN91030409H700 | N3: =+REG!$C14 -> CELAYA 8 PROGRESO ATIZAPAN C.P. 01080 ALVARO OBREGON, CDMX | O3: =+REG!$C15 -> 2026-04-09 | P3: =+REG!$C16 -> 76846.81 | Q3: =+REG!$C17 -> 21711.7025 | R3: =+REG!$C18 -> VEINTIUN MIL SETECIENTOS ONCE PESOS 70/100 M.N. | S3: =+REG!$C19 -> 6000 | T3: =+REG!$C20 -> SEIS MIL PESOS 00/100 M.N. | U3: =+REG!$C21 -> 55135.1075 | V3: =+REG!$C22 -> CINCUENTA Y CINCO MIL CIENTO TREINTA Y CINCO PESOS 11/100 M.N.
A4: =+A3+1 -> 2
A5: 3
A6: 4
A7: 5
A8: 6
A9: 7
A10: 8
A11: 9
A12: 10
A13: =+A12+1 -> 11
A14: 12
A15: 13
A16: 14
A17: 15
A18: 16
A19: 17
A20: 18
A21: 19
A22: 20
A23: 21 | R23: =+REG!$C37 -> 0
A24: 22 | R24: =+REG!$C38 -> 0
A25: 23
A26: 24
A27: 25
A28: 26
A29: 27
A30: 28
A31: 29
A32: 30
A33: 31
A34: 32
A35: 33
A36: 34
A37: 35
A38: 36
A39: 37
A40: 38
A41: 39
A42: 40
A43: 41
A44: 42
A45: 43
A46: 44
A47: 45
A48: 46
A49: 47
A50: 48
A51: 49
A52: 50
A53: 51
A54: 52
A55: 53
A56: 54
A57: =+A56+1 -> 55
A58: 56
A59: 57
A60: 58
A61: 59
A62: 60
A63: 61
A64: 62
A65: 63
A66: 64
A67: 65
A68: 66
A69: 67
A70: 68
A71: 69
A72: 70
A73: 71
A74: 72
A75: 73
A76: 74
A77: 75
A78: 76
A79: 77
A80: 78
A81: 79
A82: 80
A83: 81
A84: 82
A85: 83
A86: 84
A87: 85
A88: 86
A89: 87
A90: 88
A91: 89
A92: 90
A93: 91
A94: 92
A95: 93
A96: 94
A97: 95
A98: 96
A99: 97
A100: 98
A101: 99
A102: 100
A103: 101
A104: 102
A105: 103
A106: 104
A107: 105
A108: 106
A109: 107
A110: 108
A111: 109
A112: 110
A113: 111
A114: 112
A115: 113
A116: 114
A117: 115
A118: 116
A119: 117
A120: 118
A121: =+A120+1 -> 119
A122: 120
A123: 121
A124: 122
A125: 123
A126: 124
A127: 125
A128: 126
A129: 127
A130: 128
A131: 129
A132: 130
A133: 131
A134: 132
A135: 133
A136: 134
A137: 135
A138: 136
A139: 137
A140: 138
A141: 139
A142: 140
A143: 141
A144: 142
A145: 143
A146: 144
A147: 145
A148: 146
A149: 147
A150: 148
A151: 149
A152: 150
A153: 151
A154: 152
A155: 153
A156: 154
A157: 155
A158: 156
A159: 157
A160: 158
A161: 159
A162: 160
A163: 161
A164: 162
A165: 163
A166: 164
A167: 165
A168: 166
A169: 167
A170: 168
A171: 169
A172: 170
A173: 171
A174: 172
A175: 173
A176: 174
A177: 175
A178: 176
A179: 177
A180: 178
A181: 179
A182: 180
A183: 181
A184: 182
A185: =+A184+1 -> 183
A186: 184
A187: 185
A188: 186
A189: 187
A190: 188
A191: 189
A192: 190
A193: 191
A194: 192
A195: 193
A196: 194
A197: 195
A198: 196
A199: 197
A200: 198
A201: 199
... 377 more rows

Sheet REC
T1: =CONCATENATE(P106,T2) -> CUATROCIENTOS CUARENTA Y DOS MILLONES CUATROCIENTOS CUARENTA Y DOS MIL CUATROCIENTOS VEINTE PESOS 00/100 M.N.
C2: CIUDAD DE MEXICO A | D2: =TODAY() -> 2026-04-09 | T2: =CONCATENATE(Q92," MILLON",Q93,T3) -> CUARENTA Y DOS MILLONES CUATROCIENTOS CUARENTA Y DOS MIL CUATROCIENTOS VEINTE PESOS 00/100 M.N.
N3: =IF(N10<=99,T6,IF(N10<=999,T5,IF(N10<=99999,T4,IF(N10<=999999,T3,IF(N10<=99999999,T2,T1))))) -> CUATROCIENTOS VEINTE PESOS 00/100 M.N. | T3: =CONCATENATE(P71,T4) -> CUATROCIENTOS CUARENTA Y DOS MIL CUATROCIENTOS VEINTE PESOS 00/100 M.N.
B4: RECIBO DE PAGO | T4: =CONCATENATE(Q57,T8,T5) -> CUARENTA Y DOS MIL CUATROCIENTOS VEINTE PESOS 00/100 M.N.
T5: =CONCATENATE(P37,T6) -> CUATROCIENTOS VEINTE PESOS 00/100 M.N.
B6: 1 | C6: FOLIO | D6: 1 | T6: =CONCATENATE(Q17,T7,U7) -> VEINTE PESOS 00/100 M.N.
B7: BENEFICIARIO (A) | C7: ANDREA MEJIA BARCENAS | T7: =IF(N10<=1," PESO "," PESOS ") -> PESOS | U7: =CONCATENATE(RIGHT(O9,2),"/100 M.N.") -> 00/100 M.N.
B8: CURP | C8: MEBA930411MDFJRN09 | T8: =IF(N10<=999999," MIL ",IF(RIGHT(N10,6)="000000"," DE ",IF(LEFT(RIGHT(N10,6),3)="000"," "," MIL "))) -> MIL
B9: NUM CLIENTE | C9: 30119309752 | N9: =+D12 -> 420 | O9: =DOLLAR(N9,2) -> $420.00
B10: CONCEPTO | C10: SERVICION PROPORCIONAL 7 DIAS MES DE OCTUBRE 2021 | N10: =TRUNC(N9,0) -> 420 | O10: =IF(+LEFT(RIGHT(N$10,2),2)<20,LEFT(RIGHT(N$10,2),2),RIGHT(N$10,1)) -> 0 | P10: =IF(Q12<=22,Q10,Q11) -> 20 | Q10: =RIGHT(N10,2) -> 20 | S10: Y UN | T10: UN
N11: =+O10 -> 0 | O11: =IF(+LEFT(RIGHT(N$10,2),2)<20,LEFT(RIGHT(N$10,2),2),LEFT(RIGHT(N$10,2),1)) -> 2 | P11: =+P10 -> 20 | Q11: =RIGHT(N10,1) -> 0 | S11: Y DOS | T11: DOS
B12: RECIBO POR | D12: 420 | N12: 5 | O12: =5+O11 -> 7 | P12: 5 | Q12: =1+Q10 -> 21 | S12: Y TRES | T12: TRES
B13: IMPORTE CON LETRA: | C13: =+N3 -> CUATROCIENTOS VEINTE PESOS 00/100 M.N. | N13: =+N12+N11+O11 -> 7 | P13: =+P12+P11 -> 25 | Q13: =IF(N13=5,"",CHOOSE(P10,T10,T11,T12,T13,T14,T15,T16,T17,T18,T19,T20,T21,T22,T23,T24,T25,T26,T27,T28,T29,T30)) -> VEINTE | S13: Y CUATRO | T13: CUATRO
Q14: =IF(P13=5,"",CHOOSE(P10,S10,S11,S12,S13,S14,S15,S16,S17,S18,S19)) ->  | S14: Y CINCO | T14: CINCO
Q15: =CHOOSE(O11,S20,S21,S22,S23,S24,S25,S26,S27,S28,S29) -> VEINTI | S15: Y SEIS | T15: SEIS
S16: Y SIETE | T16: SIETE
Q17: =IF(Q12<=22,Q13,IF(Q12<=30,CONCATENATE(Q15,Q13),CONCATENATE(Q15,Q14))) -> VEINTE | S17: Y OCHO | T17: OCHO
C18: ARMANDO CORDOVA MARTINEZ | S18: Y NUEVE | T18: NUEVE
B19: RECIBI DE CONFORMIDAD LA CANTIDAD MENCIONADA | T19: DIEZ
S20: DIECI | T20: ONCE
S21: VEINTI | T21: DOCE
S22: TREINTA | T22: TRECE
S23: CUARENTA | T23: CATORCE
C24: CIUDAD DE MEXICO A | D24: =+D2 -> 2026-04-09 | S24: CINCUENTA | T24: QUINCE
S25: SESENTA | T25: DIECISEIS
B26: RECIBO DE PAGO | S26: SETENTA | T26: DIECISIETE
S27: OCHENTA | T27: DIECIOCHO
B28: 2 | C28: FOLIO | D28: =+D6 -> 1 | S28: NOVENTA | T28: DIECINUEVE
B29: BENEFICIARIO (A) | C29: =+C7 -> ANDREA MEJIA BARCENAS | T29: VEINTE
B30: CURP | C30: =+C8 -> MEBA930411MDFJRN09 | T30: VEINTIUN
B31: NUM CLIENTE | C31: =+C9 -> 30119309752
B32: CONCEPTO | C32: =+C10 -> SERVICION PROPORCIONAL 7 DIAS MES DE OCTUBRE 2021
B34: RECIBO POR | D34: =+D12 -> 420 | N34: =RIGHT(N10,3) -> 420
B35: IMPORTE CON LETRA: | C35: =+C13 -> CUATROCIENTOS VEINTE PESOS 00/100 M.N. | N35: 5
N36: =+N34+N35 -> 425
O37: =IF(N10<100,10,LEFT(RIGHT(N$10,3),1)) -> 4 | P37: =IF(N36=105,"CIEN",IF(N40=5,"",CHOOSE(O37,Q37,Q38,Q39,Q40,Q41,Q42,Q43,Q44,Q45,Q50))) -> CUATROCIENTOS | Q37: CIENTO
N38: =+O37 -> 4 | Q38: DOSCIENTOS
N39: 5 | Q39: TRECIENTOS
C40: ARMANDO CORDOVA MARTINEZ | N40: =+N39+N38 -> 9 | Q40: CUATROCIENTOS
B41: RECIBI DE CONFORMIDAD LA CANTIDAD MENCIONADA | Q41: QUINIENTOS
Q42: SEISCIENTOS
Q43: SETECIENTOS
Q44: OCHOCIENTOS
Q45: NOVECIENTOS
N49: =RIGHT(N10,5) -> 420 | O49: =+N49+1-1 -> 420
N50: =IF(AND(O49<10000,O49>999),LEFT(O49,1),LEFT(N49,2)) -> 42 | O50: =IF(+LEFT(RIGHT(N$50,2),2)<20,LEFT(RIGHT(N$50,2),2),RIGHT(N$50,1)) -> 2 | P50: =IF(Q52<=22,Q50,Q51) -> 2 | Q50: =RIGHT(N50,2) -> 42 | S50: Y UN | T50: UN
N51: =+O50 -> 2 | O51: =IF(+LEFT(RIGHT(N$50,2),2)<20,LEFT(RIGHT(N$50,2),2),LEFT(RIGHT(N$50,2),1)) -> 4 | P51: =+P50 -> 2 | Q51: =RIGHT(N50,1) -> 2 | S51: Y DOS | T51: DOS
N52: 5 | O52: =5+O51 -> 9 | P52: 5 | Q52: =1+Q50 -> 43 | S52: Y TRES | T52: TRES
N53: =+N52+N51+O51 -> 11 | P53: =+P52+P51 -> 7 | Q53: =IF(N53=5,"",CHOOSE(P50,T50,T51,T52,T53,T54,T55,T56,T57,T58,T59,T60,T61,T62,T63,T64,T65,T66,T67,T68,T69,T70)) -> DOS | S53: Y CUATRO | T53: CUATRO
Q54: =IF(P53=5,"",CHOOSE(P50,S50,S51,S52,S53,S54,S55,S56,S57,S58,S59)) -> Y DOS | S54: Y CINCO | T54: CINCO
Q55: =CHOOSE(O51,S60,S61,S62,S63,S64,S65,S66,S67,S68,S69) -> CUARENTA | S55: Y SEIS | T55: SEIS
S56: Y SIETE | T56: SIETE
Q57: =IF(AND(O49>=1000,O49<2000,N10<99000),"",IF(Q52<=22,Q53,IF(Q52<=30,CONCATENATE(Q55,Q53),CONCATENATE(Q55,Q54)))) -> CUARENTA Y DOS | S57: Y OCHO | T57: OCHO
S58: Y NUEVE | T58: NUEVE
T59: DIEZ
S60: DIECI | T60: ONCE
S61: VEINTI | T61: DOCE
S62: TREINTA | T62: TRECE
S63: CUARENTA | T63: CATORCE
S64: CINCUENTA | T64: QUINCE
S65: SESENTA | T65: DIECISEIS
S66: SETENTA | T66: DIECISIETE
N67: =RIGHT(N$10,6) -> 420 | S67: OCHENTA | T67: DIECIOCHO
N68: =LEFT(N67,3) -> 420 | S68: NOVENTA | T68: DIECINUEVE
N69: 5 | T69: VEINTE
N70: =+N68+N69 -> 425 | T70: VEINTIUN
O71: =IF(N10<100,10,LEFT(RIGHT(N$10,6),1)) -> 4 | P71: =IF(N70=105,"CIEN",IF(N74=5,"",CHOOSE(O71,Q71,Q72,Q73,Q74,Q75,Q76,Q77,Q78,Q79,Q80))) -> CUATROCIENTOS | Q71: CIENTO
N72: =+O71 -> 4 | Q72: DOSCIENTOS
N73: 5 | Q73: TRECIENTOS
N74: =+N73+N72 -> 9 | Q74: CUATROCIENTOS
Q75: QUINIENTOS
Q76: SEISCIENTOS
Q77: SETECIENTOS
Q78: OCHOCIENTOS
Q79: NOVECIENTOS
N84: =RIGHT(N10,8) -> 420 | O84: =+N84+1-1 -> 420
N85: =IF(AND(O84<10000000,O84>999999),LEFT(O84,1),LEFT(N84,2)) -> 42 | O85: =IF(+LEFT(RIGHT(N$85,2),2)<20,LEFT(RIGHT(N$85,2),2),RIGHT(N$85,2)) -> 42 | P85: =IF(Q87<=22,Q85,Q86) -> 2 | Q85: =RIGHT(N85,2) -> 42 | S85: Y UN | T85: UN
N86: =+O85 -> 42 | O86: =IF(+LEFT(RIGHT(N$10,8),2)<20,LEFT(RIGHT(N$86,2),2),LEFT(RIGHT(N$86,2),1)) -> 4 | P86: =+P85 -> 2 | Q86: =RIGHT(N85,1) -> 2 | S86: Y DOS | T86: DOS
N87: 5 | O87: =5+O86 -> 9 | P87: 5 | Q87: =1+Q85 -> 43 | S87: Y TRES | T87: TRES
N88: =+N87+N86+O86 -> 51 | P88: =+P87+P86 -> 7 | Q88: =IF(P85="00","",CHOOSE(P85,T85,T86,T87,T88,T89,T90,T91,T92,T93,T94,T95,T96,T97,T98,T99,T100,T101,T102,T103,T104,T105)) -> DOS | S88: Y CUATRO | T88: CUATRO
Q89: =IF(P88=5,"",CHOOSE(P85,S85,S86,S87,S88,S89,S90,S91,S92,S93,S94)) -> Y DOS | S89: Y CINCO | T89: CINCO
Q90: =IF(O86="0","",CHOOSE(O86,S95,S96,S97,S98,S99,S100,S101,S102,S103,S104)) -> CUARENTA | S90: Y SEIS | T90: SEIS
S91: Y SIETE | T91: SIETE
Q92: =IF(Q87<=22,Q88,IF(Q87<=30,CONCATENATE(Q90,Q88),CONCATENATE(Q90,Q89))) -> CUARENTA Y DOS | S92: Y OCHO | T92: OCHO
Q93: =+IF(AND(N10<2000000,N10>999999)," ","ES ") -> ES | S93: Y NUEVE | T93: NUEVE
T94: DIEZ
S95: DIECI | T95: ONCE
S96: VEINTI | T96: DOCE
S97: TREINTA | T97: TRECE
S98: CUARENTA | T98: CATORCE
S99: CINCUENTA | T99: QUINCE
S100: SESENTA | T100: DIECISEIS
S101: SETENTA | T101: DIECISIETE
N102: =RIGHT(N$10,9) -> 420 | S102: OCHENTA | T102: DIECIOCHO
N103: =LEFT(N102,3) -> 420 | S103: NOVENTA | T103: DIECINUEVE
N104: 5 | T104: VEINTE
N105: =+N103+N104 -> 425 | T105: VEINTIUN
O106: =IF(N103<100,10,LEFT(RIGHT(N$10,9),1)) -> 4 | P106: =IF(N105=105,"CIEN",IF(N109=5,"",CHOOSE(O106,Q106,Q107,Q108,Q109,Q110,Q111,Q112,Q113,Q114,Q115))) -> CUATROCIENTOS | Q106: CIENTO
N107: =+O106 -> 4 | Q107: DOSCIENTOS
N108: 5 | Q108: TRECIENTOS
N109: =+N108+N107 -> 9 | Q109: CUATROCIENTOS
Q110: QUINIENTOS
Q111: SEISCIENTOS
Q112: SETECIENTOS
Q113: OCHOCIENTOS
Q114: NOVECIENTOS
R116: OCHOCIENTOS
R117: OCHOCIENTOS
N141: 12345678
N142: =RIGHT($P$141,2) -> 
N143: =LEFT(RIGHT($P$141,3),1) -> 
N144: =LEFT(RIGHT($P$141,5),2) -> 
N145: =LEFT(RIGHT($P$141,6),1) -> 
N146: =LEFT(RIGHT($P$141,8),2) -> 

Sheet REM
A1: ADMINISTRADORA EN REMODELACION COMERCIAL DE MEXICO
A2: PROYECTO DE OBRA
D3: FECHA: ______________________
A4: CLIENTE: ___________________________________________________________________________________________________________________________________________________
A5: BREVE DESCRIPCION DE LA OBRA QUE SE HARA:
A8: MATERIAL | B8: UNIDAD DE MEDIDA | C8: CANTIDAD | D8: P/UNITARIO | E8: SUBTOTAL
A20: TOTAL DE MATERIALES
A22: MANO DE OBRA | B22: UNIDAD DE MEDIDA | C22: VOLUMEN A EJECUTAR | D22: P/UNITARIO | E22: SUBTOTAL
A29: TOTAL DE MANO DE OBRA
A30: TOTAL PRESUPUESTO
A32: Declaro bajo protesta de decir verdad que los costos plasmados en este documento están basados en las cotizaciones realizadas por mi parte y son declarados de buena fe.
C33: Nombre y firma Cliente
A35: *Unidades de medida posibles para obras: M2, ML, PZA, JGO, SAL, LOTE, etc.
A36: **Unidades de medida posibles para material, dependiendo del tipo de material: gal, kg, ml, pza, bulto, lt, rollo, bote, cubeta, ton, m2

Sheet CSF
A1: NOMBRE | B1: MIGUEL ANGEL LARA GARCIA
A2: RFC | B2: LAGM850627829
A3: CURP | B3: LAGM850627HDFRRG03
A4: INIC OPERAC | B4: 2004
A5: C.P. | B5: 2770
A6: ENTIDAD | B6: CDMX
A7: ESTATUS | B7: ACTIVO
A8: REGIMEN | B8: sys
A9: CORREO | B9: angel.lara85@gmail.com
A10: TELEFONO | B10: 5643907370
A11: FECHA | B11: =TODAY() -> 2026-04-09
A12: SOLICITUD DE: | B12: XOL
A15: NUM | B15: NOMBRE | C15: RFC | D15: CURP | E15: FECHA | F15: SOLICITUD DE:
A16: 1 | B16: EDGAR IVAN LASTRA ANTONIO | C16: LAAE870912PU1 | E16: 2023-12-28 | F16: VALER
A17: =+A14+1 -> 1 | B17: ADAN PALERMO GUZMAN | C17: PAGA911017383 | E17: 2024-01-05 | F17: MAYTE
A18: =+A17+1 -> 2 | B18: DAVID GUTIERREZ TEJEDA | C18: GUTD921007QI9 | E18: 2024-01-05 | F18: MAYTE
A19: 3 | B19: IGNACIO CORONA MEJIA | C19: COMI8607317N7 | E19: 2024-01-05 | F19: VALER
A20: 4 | B20: JOSE CRISTOBAL BOLAÑOS LOPEZ | C20: BOLC750510A81 | E20: 2024-01-05 | F20: MAYTE
A21: 5 | B21: LUZ FERNANDA CURIEL MARTINEZ | C21: CUML7805308B1 | E21: 2024-01-05 | F21: MAYTE
A22: 6 | B22: OMAR SANCHEZ VELOZ | C22: SAVO9007115AA | E22: 2024-01-05 | F22: MAYTE
A23: 7 | B23: SERGIO JUNIOR VAZQUEZ PEREZ | C23: VAPS8605084G4 | E23: 2024-01-05 | F23: VALER
A24: 8 | B24: EMMANUEL CRUZ ELEUTERIO | C24: CUEE920304EB6 | E24: 2024-01-10 | F24: VALER
A25: 9 | B25: VICTOR HUGO GONZALEZ MARTINEZ | C25: GOMV9203169A4 | E25: 2024-01-10 | F25: VALER
A26: 10 | B26: LUIS ALBERTO DORADO ROJAS | C26: DORL8806032F3 | E26: 2024-01-11 | F26: VALER
A27: 11 | B27: JORGE ALBERTO SILVA TREJO | C27: SITJ790603T6A | E27: 2024-01-12 | F27: MAYTE
A28: 12 | B28: OSCAR ISAI RESENDIZ GONZALEZ | C28: REGO940803E63 | E28: 2024-02-07 | F28: MAYTE
A29: 13 | B29: EVARISTO GUEVARA HUERTA | C29: GUHE680720HC3 | E29: 2024-02-09 | F29: MAYTE
A30: 14 | B30: MA DEL ROCIO MARTINEZ SANCHEZ | C30: MASR700801S97 | E30: 2024-02-12 | F30: VALER
A31: 15 | B31: YOLANDA TELLEZ ARGUELLO | C31: TEAY751020DE5 | E31: 2024-02-20 | F31: XOL
A32: 16 | B32: JAIRO JAVIER FABIAN RAMIREZ | C32: FARJ920326FK6 | E32: 2024-03-04 | F32: XOL
A33: 17 | B33: ARTURO GIOVANI RANGEL LAREDO | C33: RALA9207071D1 | D33: RALA920707HDFNRR00 | E33: 2024-04-08 | F33: MANDO
A34: 18 | B34: ANWAR GARCIA VELAZQUEZ | C34: GAVA8410265D2 | D34: GAVA841026HDFRLN00 | E34: 2024-04-29 | F34: XOL
A35: 19 | B35: BEATRIZ GOMEZ LANDETA | C35: GOLB730908IE7 | D35: GOLB730908MHGMNT05 | E35: 2024-04-29 | F35: XOL
A36: 20 | B36: JUAN CARLOS CID LOPEZ | C36: CILJ8604135A1 | D36: CILJ860413HMCDPN06 | E36: 2024-05-08 | F36: XOL
A37: 21 | B37: BENJAMIN DAMIAN MIGUEL | C37: DAMB961019VBA | D37: DAMB961019HMCMGN07 | E37: 2024-05-15 | F37: MANDO
A38: 22 | B38: JESUS RODRIGUEZ LARA | C38: ROLJ791225N71 | D38: ROLJ791225HDFDRS05 | E38: 2024-05-15 | F38: XOL
A39: 23 | B39: ONECIMA SANCHEZ ASCENCIO | C39: SAAO730417FBA | D39: SAAO730417MMCNSN07 | E39: 2024-05-23 | F39: MANDO
A40: 24 | B40: LUIS AUGUSTO FLORES JUAREZ | C40: FOJL830912JX8 | D40: FOJL830912HDFLRS07 | E40: 2024-06-12 | F40: XOL
A41: 25
A42: 26
A43: 27
A44: 28
A45: 29
A46: 30
A47: 31
A48: 32
A49: 33
A50: =+A49+1 -> 34
A51: 35
A52: 36
A53: 37
A54: 38
A55: 39
A56: 40
A57: 41
A58: 42
A59: 43
A60: 44
A61: 45
A62: 46
A63: 47
A64: 48
A65: 49
A66: 50
A67: 51

Sheet regCTES
B1: ADMINISTRADORA EN REMODELACION COMERCIAL DE MEXICO
A2: FECHA | B2: NOMBRE | C2: TELEFONO | D2: N.S.S. | E2: CUENTA INF | F2: OBSERVACIONES
